[Event "FIDE World Rapid-ch Open 2018"]
[White "Postny, Evgeny"]
[Black "Geller, Jakov"]
[Site "St. Petersburg"]
[Round "9.57"]
[Annotator "ChessBase"]
[Result "1-0"]
[Date "2018.12.27"]
[WhiteElo "2615"]
[BlackElo "2518"]
[PlyCount "78"]
[TimeControl "900+10"]

1. d4 {[%emt 0:0:0]} d5 {[%emt 0:0:0]} 2. c4 {[%emt 0:0:0]} e6 {[%emt 0:0:0]} 3. Nf3 {[%emt 0:0:0]} Nf6 {[%emt 0:0:0]} 4. g3 {[%emt 0:0:0]} Be7 {[%emt 0:0:4]} 5. Bg2 {[%emt 0:0:1]} 0-0 {[%emt 0:0:3]} 6. Qc2 {[%emt 0:0:0]} c6 {[%emt 0:0:13]} 7. 0-0 {[%emt 0:0:7]} b6 {[%emt 0:0:7]} 8. b3 {[%emt 0:0:5]
} Nbd7 {[%emt 0:1:19]} 9. Nc3 {[%emt 0:0:19]} Ba6 {[%emt 0:0:0]} 10. Nd2 {[%emt 0:0:8]} b5 {[%emt 0:0:21]} 11. e4 {[%emt 0:0:45]} dxc4 {[%emt 0:0:56]} 12. bxc4 {[%emt 0:0:4]} bxc4 {[%emt 0:0:28]} 13. Rd1 {[%emt 0:0:51]
} Qa5 {[%emt 0:1:14]} 14. Bf1 {[%emt 0:1:57]} Nb6 {[%emt 0:0:0]} 15. Bb2 {[%emt 0:0:22]} Rfd8 {[%emt 0:1:11]} 16. Nf3 {[%emt 0:4:18]} h6 {[%emt 0:1:11]} 17. a4 {[%emt 0:0:32]} Rac8 {[%emt 0:1:42]} 18. Nb1 {[%emt 0:0:21]
} Bb4 {[%emt 0:1:56]} 19. Nc3 {[%emt 0:2:7]} c5 {[%emt 0:0:0]} 20. d5 {[%emt 0:0:3]} exd5 {[%emt 0:0:8]} 21. exd5 {[%emt 0:0:6]} Nbxd5 {[%emt 0:2:2]} 22. Nxd5 {[%emt 0:0:3]} Nxd5 {[%emt 0:0:31]} 23. Bxc4 {[%emt 0:0:2]} Bxc4 {[%emt 0:0:8]} 24. Qxc4 {[%emt 0:0:3]} Bc3 {[%emt 0:0:0]} 25. Rxd5 {[%emt 0:0:36]} Bxb2 {[%emt 0:0:9]} 26. Rad1 {[%emt 0:0:0]} Rxd5 {[%emt 0:0:4]} 27. Rxd5 {[%emt 0:0:42]} Qc3 {[%emt 0:0:37]} 28. Qa6 {[%emt 0:1:46]} Re8 {[%emt 0:0:21]} 29. Kg2 {[%emt 0:0:8]} Qb4 {[%emt 0:0:9]
} 30. Qxa7 {[%emt 0:0:26]} c4 {[%emt 0:0:14]} 31. Rb5 {[%emt 0:0:0]} Qa3 {[%emt 0:0:1]} 32. Qd7 {[%emt 0:0:31]} Rf8 {[%emt 0:0:16]} 33. a5 {[%emt 0:1:12]} Bf6 {[%emt 0:0:9]} 34. Qc6 {[%emt 0:0:9]} c3 {[%emt 0:0:0]} 35. a6 {[%emt 0:0:28]} Rd8 {[%emt 0:0:20]} 36. Rc5 {[%emt 0:0:21]} Qa2 {[%emt 0:0:9]} 37. Rc4 {[%emt 0:0:10]} Qa5 {[%emt 0:0:8]} 38. Ra4 {[%emt 0:0:5]
} Qf5 {[%emt 0:0:15]} 39. a7 {[%emt 0:0:3]} Rd2 {[%emt 0:0:0]} 1-0

[Event "FIDE World Rapid-ch Open 2018"]
[White "Jumabayev, Rinat"]
[Black "Anisimov, Pavel"]
[Site "St. Petersburg"]
[Round "9.58"]
[Annotator "ChessBase"]
[Result "1-0"]
[Date "2018.12.27"]
[WhiteElo "2602"]
[BlackElo "2533"]
[PlyCount "73"]
[TimeControl "900+10"]

1. c4 {[%emt 0:0:0]} e5 {[%emt 0:0:0]} 2. Nc3 {[%emt 0:0:0]} d6 {[%emt 0:0:0]} 3. g3 {[%emt 0:0:13]} Nc6 {[%emt 0:0:4]} 4. Nf3 {[%emt 0:0:30]} f5 {[%emt 0:0:44]} 5. d4 {[%emt 0:0:1]} e4 {[%emt 0:0:10]} 6. Ng5 {[%emt 0:0:0]} Be7 {[%emt 0:0:15]} 7. Nh3 {[%emt 0:0:3]} Nf6 {[%emt 0:0:27]} 8. f3 {[%emt 0:0:17]
} exf3 {[%emt 0:2:21]} 9. exf3 {[%emt 0:0:2]} 0-0 {[%emt 0:0:0]} 10. d5 {[%emt 0:0:37]} Ne5 {[%emt 0:0:11]} 11. Be2 {[%emt 0:0:10]} Nh5 {[%emt 0:2:26]} 12. 0-0 {[%emt 0:1:0]} c5 {[%emt 0:0:50]} 13. f4 {[%emt 0:0:0]} Ng4 {[%emt 0:0:4]} 14. Kg2 {[%emt 0:0:14]} Bf6 {[%emt 0:2:33]} 15. Ng5 {[%emt 0:2:29]} Bxc3 {[%emt 0:0:7]} 16. bxc3 {[%emt 0:0:3]} Nhf6 {[%emt 0:0:16]
} 17. Bf3 {[%emt 0:0:29]} Qa5 {[%emt 0:1:38]} 18. Qd3 {[%emt 0:0:0]} Re8 {[%emt 0:2:13]} 19. Bd2 {[%emt 0:0:28]} Bd7 {[%emt 0:0:29]} 20. Ne6 {[%emt 0:0:40]} Nh6 {[%emt 0:0:3]} 21. Rfe1 {[%emt 0:0:9]} Re7 {[%emt 0:0:26]
} 22. Rab1 {[%emt 0:3:12]} Rb8 {[%emt 0:0:1]} 23. Qc2 {[%emt 0:1:31]
} Ba4 {[%emt 0:0:27]} 24. Qd3 {[%emt 0:0:59]} Bd7 {[%emt 0:0:0]} 25. h3 {[%emt 0:0:7]} Be8 {[%emt 0:0:23]} 26. g4 {[%emt 0:1:19]} fxg4 {[%emt 0:0:23]} 27. hxg4 {[%emt 0:0:2]} Nhxg4 {[%emt 0:0:58]} 28. Bxg4 {[%emt 0:0:6]
} Nxg4 {[%emt 0:0:3]} 29. Ng5 {[%emt 0:0:3]} Bg6 {[%emt 0:0:0]} 30. f5 {[%emt 0:0:3]} Rxe1 {[%emt 0:0:40]} 31. Rxe1 {[%emt 0:0:18]} Bh5 {[%emt 0:0:9]} 32. Re7 {[%emt 0:0:30]} Re8 {[%emt 0:0:31]} 33. Rxb7 {[%emt 0:0:40]
} Ne5 {[%emt 0:0:14]} 34. Qg3 {[%emt 0:0:28]} Bg4 {[%emt 0:0:0]} 35. Ne6 {[%emt 0:0:5]} Qxa2 {[%emt 0:0:9]} 36. Rxg7+ {[%emt 0:0:2]} Kh8 {[%emt 0:0:0]} 37. Rxh7+ {[%emt 0:0:17]} 1-0

[Event "FIDE World Rapid-ch Open 2018"]
[White "Bindrich, Falko"]
[Black "Oganian, Miran"]
[Site "St. Petersburg"]
[Round "9.59"]
[Annotator "ChessBase"]
[Result "1/2-1/2"]
[Date "2018.12.27"]
[WhiteElo "2606"]
[BlackElo "2423"]
[PlyCount "81"]
[TimeControl "900+10"]

1. d4 {[%emt 0:0:0]} Nf6 {[%emt 0:0:0]} 2. c4 {[%emt 0:0:0]} e6 {[%emt 0:0:0]} 3. g3 {[%emt 0:0:0]} d5 {[%emt 0:0:0]} 4. Nf3 {[%emt 0:0:0]} Be7 {[%emt 0:0:0]} 5. Bg2 {[%emt 0:0:0]} 0-0 {[%emt 0:0:2]} 6. 0-0 {[%emt 0:0:0]} dxc4 {[%emt 0:0:2]} 7. Ne5 {[%emt 0:0:3]} Nc6 {[%emt 0:0:2]} 8. Nxc6 {[%emt 0:0:1]} bxc6 {[%emt 0:0:2]} 9. Na3 {[%emt 0:0:2]} Bxa3 {[%emt 0:0:4]
} 10. bxa3 {[%emt 0:0:1]} Ba6 {[%emt 0:1:31]} 11. Qd2 {[%emt 0:0:6]
} Rb8 {[%emt 0:0:54]} 12. Rd1 {[%emt 0:0:39]} Rb6 {[%emt 0:0:0]} 13. a4 {[%emt 0:1:13]} Qc8 {[%emt 0:0:48]} 14. Ba3 {[%emt 0:0:12]} Rd8 {[%emt 0:0:1]} 15. Be7 {[%emt 0:0:18]} c3 {[%emt 0:2:44]} 16. Qxc3 {[%emt 0:0:20]
} Nd5 {[%emt 0:0:14]} 17. Bxd5 {[%emt 0:0:47]} Rxd5 {[%emt 0:0:0]} 18. e4 {[%emt 0:0:6]} Rd7 {[%emt 0:0:35]} 19. Bc5 {[%emt 0:0:5]} Rb7 {[%emt 0:0:6]} 20. Rab1 {[%emt 0:0:53]} Rd8 {[%emt 0:1:37]} 21. Kg2 {[%emt 0:1:44]
} Be2 {[%emt 0:2:56]} 22. Rxb7 {[%emt 0:1:41]} Qxb7 {[%emt 0:0:0]} 23. Re1 {[%emt 0:2:0]} Qa6 {[%emt 0:0:46]} 24. Qe3 {[%emt 0:2:13]} Bc4 {[%emt 0:0:22]} 25. Qg5 {[%emt 0:0:2]} f6 {[%emt 0:0:34]} 26. Qf4 {[%emt 0:0:1]
} Qb7 {[%emt 0:0:43]} 27. a3 {[%emt 0:0:19]} Re8 {[%emt 0:0:0]} 28. Qc1 {[%emt 0:1:2]} Qa6 {[%emt 0:0:37]} 29. a5 {[%emt 0:0:33]} Qxa5 {[%emt 0:0:31]} 30. Re3 {[%emt 0:0:5]} Bb5 {[%emt 0:0:53]} 31. g4 {[%emt 0:0:0]} e5 {[%emt 0:0:20]} 32. g5 {[%emt 0:0:46]} exd4 {[%emt 0:0:33]} 33. Bxd4 {[%emt 0:0:2]} Qa4 {[%emt 0:0:23]} 34. Qa1 {[%emt 0:2:8]} c5 {[%emt 0:0:1]
} 35. Bxc5 {[%emt 0:0:1]} Rxe4 {[%emt 0:0:45]} 36. Qa2+ {[%emt 0:0:15]
} Qc4 {[%emt 0:0:6]} 37. Qxc4+ {[%emt 0:0:17]} Rxc4 {[%emt 0:0:0]} 38. Bxa7 {[%emt 0:0:2]} Rg4+ {[%emt 0:0:47]} 39. Rg3 {[%emt 0:0:35]
} Rxg5 {[%emt 0:0:5]} 40. Rxg5 {[%emt 0:0:11]} fxg5 {[%emt 0:0:1]} 41. Kf3 {[%emt 0:0:1]} 1/2-1/2

[Event "FIDE World Rapid-ch Open 2018"]
[White "Indjic, Aleksandar"]
[Black "Kazhgaleyev, Murtas"]
[Site "St. Petersburg"]
[Round "9.60"]
[Annotator "ChessBase"]
[Result "0-1"]
[Date "2018.12.27"]
[WhiteElo "2620"]
[BlackElo "2587"]
[PlyCount "126"]
[TimeControl "900+10"]

1. d4 {[%emt 0:0:10]} Nf6 {[%emt 0:0:5]} 2. c4 {[%emt 0:0:4]} g6 {[%emt 0:0:0]} 3. Nc3 {[%emt 0:0:4]} Bg7 {[%emt 0:0:2]} 4. e4 {[%emt 0:0:8]} d6 {[%emt 0:0:2]} 5. Nf3 {[%emt 0:0:19]} 0-0 {[%emt 0:0:3]} 6. Be2 {[%emt 0:0:0]} c6 {[%emt 0:0:2]} 7. 0-0 {[%emt 0:0:9]} e5 {[%emt 0:0:2]} 8. dxe5 {[%emt 0:0:30]} dxe5 {[%emt 0:0:35]} 9. Nxe5 {[%emt 0:0:3]} Nxe4 {[%emt 0:0:0]} 10. Nxe4 {[%emt 0:0:5]} Bxe5 {[%emt 0:0:5]} 11. Qxd8 {[%emt 0:0:0]} Rxd8 {[%emt 0:0:3]} 12. Bg5 {[%emt 0:0:5]} Re8 {[%emt 0:0:30]} 13. Rad1 {[%emt 0:1:47]} Bf5 {[%emt 0:2:8]} 14. Ng3 {[%emt 0:3:27]} Bxg3 {[%emt 0:2:51]
} 15. fxg3 {[%emt 0:0:3]} f6 {[%emt 0:0:44]} 16. Rxf5 {[%emt 0:2:48]
} gxf5 {[%emt 0:0:58]} 17. Bh5 {[%emt 0:0:3]} fxg5 {[%emt 0:0:0]} 18. Bxe8 {[%emt 0:0:5]} Na6 {[%emt 0:0:3]} 19. Bd7 {[%emt 0:0:26]} Rf8 {[%emt 0:0:45]} 20. Rf1 {[%emt 0:0:11]} f4 {[%emt 0:0:7]} 21. gxf4 {[%emt 0:0:2]
} Nc5 {[%emt 0:0:27]} 22. Bg4 {[%emt 0:0:12]} gxf4 {[%emt 0:0:0]} 23. b4 {[%emt 0:0:39]} Nd3 {[%emt 0:0:16]} 24. Rd1 {[%emt 0:1:7]} Nxb4 {[%emt 0:2:25]} 25. Rd7 {[%emt 0:0:9]} Re8 {[%emt 0:0:2]} 26. h4 {[%emt 0:0:0]} Nxa2 {[%emt 0:0:36]} 27. Rxb7 {[%emt 0:0:3]} a5 {[%emt 0:0:2]} 28. Bf5 {[%emt 0:0:58]} Nc3 {[%emt 0:0:32]} 29. Bxh7+ {[%emt 0:0:7]} Kf8 {[%emt 0:0:9]
} 30. h5 {[%emt 0:1:40]} Re7 {[%emt 0:0:16]} 31. Rb8+ {[%emt 0:0:0]} Kg7 {[%emt 0:0:1]} 32. Bg6 {[%emt 0:0:1]} Ra7 {[%emt 0:0:38]} 33. Rb3 {[%emt 0:0:3]} Ne2+ {[%emt 0:0:3]} 34. Kf2 {[%emt 0:0:15]} Nd4 {[%emt 0:0:2]
} 35. Ra3 {[%emt 0:0:7]} a4 {[%emt 0:0:20]} 36. Ke1 {[%emt 0:0:0]} c5 {[%emt 0:1:16]} 37. Kd2 {[%emt 0:0:31]} Kh6 {[%emt 0:0:13]} 38. Kd3 {[%emt 0:0:13]} Kg5 {[%emt 0:0:18]} 39. Kd2 {[%emt 0:0:58]} Nc6 {[%emt 0:1:3]
} 40. Be8 {[%emt 0:0:14]} Ne5 {[%emt 0:0:2]} 41. Kc3 {[%emt 0:0:0]} Re7 {[%emt 0:0:31]} 42. Bxa4 {[%emt 0:0:2]} Kxh5 {[%emt 0:0:18]} 43. Bc2 {[%emt 0:0:3]} Rg7 {[%emt 0:0:18]} 44. Ra8 {[%emt 0:0:40]} Rg3+ {[%emt 0:0:7]
} 45. Kd2 {[%emt 0:0:1]} Rxg2+ {[%emt 0:0:13]} 46. Kd1 {[%emt 0:0:0]
} Nxc4 {[%emt 0:0:39]} 47. Be4 {[%emt 0:0:16]} Rd2+ {[%emt 0:0:0]} 48. Ke1 {[%emt 0:0:2]} Rd4 {[%emt 0:0:5]} 49. Rh8+ {[%emt 0:0:15]} Kg5 {[%emt 0:0:4]} 50. Rg8+ {[%emt 0:0:2]} Kf6 {[%emt 0:0:6]} 51. Bb7 {[%emt 0:0:22]
} Ne5 {[%emt 0:0:8]} 52. Rf8+ {[%emt 0:0:3]} Ke7 {[%emt 0:0:0]} 53. Rf5 {[%emt 0:0:3]} Kd6 {[%emt 0:0:12]} 54. Rf6+ {[%emt 0:0:11]} Kc7 {[%emt 0:0:5]} 55. Bh1 {[%emt 0:0:10]} Ra4 {[%emt 0:0:29]} 56. Bd5 {[%emt 0:0:4]
} Rd4 {[%emt 0:0:4]} 57. Bh1 {[%emt 0:0:1]} Kd7 {[%emt 0:0:0]} 58. Ke2 {[%emt 0:0:19]} c4 {[%emt 0:0:3]} 59. Rh6 {[%emt 0:0:13]} c3 {[%emt 0:0:10]
} 60. Rh7+ {[%emt 0:0:2]} Kd6 {[%emt 0:0:12]} 61. Rh6+ {[%emt 0:0:4]
} Kc5 {[%emt 0:0:2]} 62. Rh5 {[%emt 0:0:31]} Rd2+ {[%emt 0:0:0]} 63. Ke1 {[%emt 0:0:1]} Kd4 {[%emt 0:0:4]} 0-1

[Event "FIDE World Rapid-ch Open 2018"]
[White "Zvjaginsev, Vadim"]
[Black "Sharma, Dinesh K."]
[Site "St. Petersburg"]
[Round "9.61"]
[Annotator "ChessBase"]
[Result "1/2-1/2"]
[Date "2018.12.27"]
[WhiteElo "2642"]
[BlackElo "2295"]
[PlyCount "54"]
[TimeControl "900+10"]

1. g3 {[%emt 0:0:0]} d5 {[%emt 0:0:0]} 2. Nf3 {[%emt 0:0:0]} c6 {[%emt 0:0:0]} 3. Bg2 {[%emt 0:0:0]} Bg4 {[%emt 0:0:0]} 4. d3 {[%emt 0:0:0]} Nd7 {[%emt 0:0:10]} 5. Nbd2 {[%emt 0:0:1]} Ngf6 {[%emt 0:0:2]} 6. h3 {[%emt 0:0:0]} Bh5 {[%emt 0:0:2]} 7. c4 {[%emt 0:0:4]} e6 {[%emt 0:0:10]} 8. 0-0 {[%emt 0:0:3]} Be7 {[%emt 0:0:17]} 9. b3 {[%emt 0:0:30]} a5 {[%emt 0:0:3]
} 10. a3 {[%emt 0:0:2]} 0-0 {[%emt 0:0:5]} 11. Bb2 {[%emt 0:0:1]} Rc8 {[%emt 0:1:37]
} 12. Qc2 {[%emt 0:0:40]} h6 {[%emt 0:0:53]} 13. Rfc1 {[%emt 0:0:0]} Bg6 {[%emt 0:0:21]} 14. Ne5 {[%emt 0:0:33]} Nxe5 {[%emt 0:0:8]} 15. Bxe5 {[%emt 0:0:3]} Nd7 {[%emt 0:0:20]} 16. Bc3 {[%emt 0:1:41]} b5 {[%emt 0:1:59]
} 17. Bb2 {[%emt 0:2:40]} a4 {[%emt 0:1:20]} 18. Qd1 {[%emt 0:0:0]} axb3 {[%emt 0:0:26]} 19. cxb5 {[%emt 0:0:8]} cxb5 {[%emt 0:0:7]} 20. Rxc8 {[%emt 0:0:2]} Qxc8 {[%emt 0:0:15]} 21. Rc1 {[%emt 0:0:2]} Qa6 {[%emt 0:0:56]
} 22. Qxb3 {[%emt 0:0:7]} Ra8 {[%emt 0:1:1]} 23. Rb1 {[%emt 0:3:25]
} Nc5 {[%emt 0:0:26]} 24. Qc3 {[%emt 0:0:34]} Bf8 {[%emt 0:0:0]} 25. Nf3 {[%emt 0:0:16]} Na4 {[%emt 0:0:17]} 26. Qb3 {[%emt 0:0:8]} Nxb2 {[%emt 0:1:12]} 27. Qxb2 {[%emt 0:0:2]} Rb8 {[%emt 0:0:31]} 1/2-1/2

[Event "FIDE World Rapid-ch Open 2018"]
[White "Dzhumagaliev, Yan"]
[Black "Dreev, Aleksey"]
[Site "St. Petersburg"]
[Round "9.63"]
[Annotator "ChessBase"]
[Result "0-1"]
[Date "2018.12.27"]
[WhiteElo "2410"]
[BlackElo "2670"]
[PlyCount "104"]
[TimeControl "900+10"]

1. d4 {[%emt 0:0:0]} d5 {[%emt 0:0:0]} 2. c4 {[%emt 0:0:0]} c6 {[%emt 0:0:0]} 3. Nf3 {[%emt 0:0:0]} Nf6 {[%emt 0:0:0]} 4. e3 {[%emt 0:0:0]} Bf5 {[%emt 0:0:0]} 5. Nc3 {[%emt 0:0:0]} e6 {[%emt 0:0:1]} 6. Nh4 {[%emt 0:0:0]} Be4 {[%emt 0:0:1]} 7. f3 {[%emt 0:0:2]} Bg6 {[%emt 0:0:1]} 8. Qb3 {[%emt 0:0:11]} Qc7 {[%emt 0:0:3]} 9. Bd2 {[%emt 0:0:23]} Be7 {[%emt 0:0:0]} 10. cxd5 {[%emt 0:2:13]} cxd5 {[%emt 0:0:8]} 11. Nb5 {[%emt 0:3:22]} Qd7 {[%emt 0:2:2]} 12. Bb4 {[%emt 0:0:20]} Nc6 {[%emt 0:0:15]} 13. Bxe7 {[%emt 0:0:4]
} Qxe7 {[%emt 0:0:4]} 14. Nxg6 {[%emt 0:0:3]} hxg6 {[%emt 0:0:0]} 15. Qa3 {[%emt 0:0:53]} a6 {[%emt 0:1:2]} 16. Nd6+ {[%emt 0:1:0]} Kd8 {[%emt 0:2:51]} 17. Rc1 {[%emt 0:2:10]} Ne8 {[%emt 0:1:16]} 18. Nxe8 {[%emt 0:0:45]
} Qxa3 {[%emt 0:0:10]} 19. bxa3 {[%emt 0:0:2]} Rxe8 {[%emt 0:0:0]} 20. h4 {[%emt 0:0:37]} Kd7 {[%emt 0:0:14]} 21. f4 {[%emt 0:0:26]} Rac8 {[%emt 0:0:22]} 22. Rb1 {[%emt 0:1:13]} Na5 {[%emt 0:0:21]} 23. Kd2 {[%emt 0:0:1]
} Rc6 {[%emt 0:1:41]} 24. Bd3 {[%emt 0:0:2]} Rh8 {[%emt 0:0:0]} 25. Rb4 {[%emt 0:0:25]} Rhc8 {[%emt 0:0:22]} 26. Rhb1 {[%emt 0:0:24]} R8c7 {[%emt 0:1:21]} 27. Ra4 {[%emt 0:3:46]} b6 {[%emt 0:0:1]} 28. Rb2 {[%emt 0:0:36]
} Ra7 {[%emt 0:0:6]} 29. Rab4 {[%emt 0:0:16]} Kc7 {[%emt 0:0:0]} 30. Rb1 {[%emt 0:0:13]} Nb7 {[%emt 0:0:36]} 31. e4 {[%emt 0:0:2]} Nd6 {[%emt 0:0:30]} 32. e5 {[%emt 0:0:1]} Nf5 {[%emt 0:0:40]} 33. Bxf5 {[%emt 0:0:30]
} gxf5 {[%emt 0:0:2]} 34. R4b3 {[%emt 0:0:20]} Ra8 {[%emt 0:0:0]} 35. Rg3 {[%emt 0:0:7]} g6 {[%emt 0:0:6]} 36. h5 {[%emt 0:0:1]} gxh5 {[%emt 0:0:2]} 37. Rg7 {[%emt 0:0:0]} Rf8 {[%emt 0:0:3]} 38. Rh1 {[%emt 0:0:2]
} Rc4 {[%emt 0:0:6]} 39. Kd3 {[%emt 0:0:35]} Kd7 {[%emt 0:0:0]} 40. Rxh5 {[%emt 0:0:23]} Ra4 {[%emt 0:0:1]} 41. g4 {[%emt 0:0:9]} Rxa3+ {[%emt 0:0:3]} 42. Kc2 {[%emt 0:0:1]} fxg4 {[%emt 0:0:12]} 43. f5 {[%emt 0:0:12]
} Rxa2+ {[%emt 0:0:47]} 44. Kb3 {[%emt 0:0:1]} Rf2 {[%emt 0:0:0]} 45. f6 {[%emt 0:0:7]} Rf3+ {[%emt 0:0:41]} 46. Kb2 {[%emt 0:0:13]} g3 {[%emt 0:0:35]} 47. Rhh7 {[%emt 0:0:2]} Kc6 {[%emt 0:0:28]} 48. Rxf7 {[%emt 0:0:26]
} Rxf7 {[%emt 0:0:15]} 49. Rxf7 {[%emt 0:0:1]} Kb5 {[%emt 0:0:0]} 50. Rg7 {[%emt 0:0:24]} Kc4 {[%emt 0:0:6]} 51. Rg4 {[%emt 0:0:9]} Rf2+ {[%emt 0:0:7]} 52. Ka3 {[%emt 0:0:7]} b5 {[%emt 0:0:8]} 0-1

[Event "FIDE World Rapid-ch Open 2018"]
[White "Salgado Lopez, Ivan"]
[Black "Vishnu Prasanna. V"]
[Site "St. Petersburg"]
[Round "9.64"]
[Annotator "ChessBase"]
[Result "0-1"]
[Date "2018.12.27"]
[WhiteElo "2629"]
[BlackElo "2518"]
[PlyCount "84"]
[TimeControl "900+10"]

1. e4 {[%emt 0:0:9]} c5 {[%emt 0:0:0]} 2. Nf3 {[%emt 0:0:19]} d6 {[%emt 0:0:0]} 3. c3 {[%emt 0:0:26]} Nf6 {[%emt 0:0:2]} 4. Bd3 {[%emt 0:0:3]} Nc6 {[%emt 0:0:15]} 5. Bc2 {[%emt 0:0:1]} Bg4 {[%emt 0:0:23]} 6. d3 {[%emt 0:0:0]} e6 {[%emt 0:0:16]} 7. Nbd2 {[%emt 0:0:2]} d5 {[%emt 0:1:11]} 8. Qe2 {[%emt 0:0:9]} Qc7 {[%emt 0:0:43]} 9. h3 {[%emt 0:0:19]} Bh5 {[%emt 0:0:0]} 10. g4 {[%emt 0:2:5]} Bg6 {[%emt 0:0:2]} 11. h4 {[%emt 0:0:9]} dxe4 {[%emt 0:1:26]} 12. dxe4 {[%emt 0:0:3]} h5 {[%emt 0:0:15]} 13. g5 {[%emt 0:0:0]} Ng4 {[%emt 0:0:6]} 14. Nc4 {[%emt 0:0:41]} Be7 {[%emt 0:1:30]} 15. Bd2 {[%emt 0:0:38]} b5 {[%emt 0:1:48]} 16. Ne3 {[%emt 0:0:2]} Rb8 {[%emt 0:0:0]} 17. Nf5 {[%emt 0:1:1]} exf5 {[%emt 0:1:37]} 18. exf5 {[%emt 0:0:3]
} Bh7 {[%emt 0:0:7]} 19. 0-0-0 {[%emt 0:0:3]} b4 {[%emt 0:0:30]} 20. Rhe1 {[%emt 0:0:26]} bxc3 {[%emt 0:0:56]} 21. Bxc3 {[%emt 0:0:20]} Bxf5 {[%emt 0:0:0]} 22. Bxf5 {[%emt 0:2:16]} Qf4+ {[%emt 0:0:13]} 23. Nd2 {[%emt 0:0:13]
} Qxf5 {[%emt 0:0:9]} 24. f3 {[%emt 0:0:3]} 0-0 {[%emt 0:1:30]} 25. fxg4 {[%emt 0:0:2]
} hxg4 {[%emt 0:0:7]} 26. Qe4 {[%emt 0:4:7]} Qxe4 {[%emt 0:0:0]} 27. Nxe4 {[%emt 0:0:23]} Nd4 {[%emt 0:1:34]} 28. Nf2 {[%emt 0:1:32]} Bd6 {[%emt 0:0:35]} 29. Nxg4 {[%emt 0:0:2]} Bg3 {[%emt 0:0:5]} 30. Rh1 {[%emt 0:0:24]
} Rfe8 {[%emt 0:0:24]} 31. Rh3 {[%emt 0:1:9]} Ne2+ {[%emt 0:0:0]} 32. Kc2 {[%emt 0:0:2]} Bf4 {[%emt 0:0:13]} 33. Rf1 {[%emt 0:0:39]} Nxc3 {[%emt 0:0:22]} 34. Kxc3 {[%emt 0:0:2]} Bc7 {[%emt 0:0:23]} 35. Ne3 {[%emt 0:0:42]
} Be5+ {[%emt 0:0:10]} 36. Kc4 {[%emt 0:0:2]} Rxb2 {[%emt 0:0:0]} 37. Nd5 {[%emt 0:0:17]} Rc2+ {[%emt 0:0:7]} 38. Kb5 {[%emt 0:0:9]} c4 {[%emt 0:0:13]} 39. Re3 {[%emt 0:0:14]} Rd2 {[%emt 0:0:9]} 40. Nb4 {[%emt 0:1:9]
} Rb8+ {[%emt 0:0:17]} 41. Kc6 {[%emt 0:0:53]} Rb6+ {[%emt 0:0:0]} 42. Kc5 {[%emt 0:0:12]} Bd4+ {[%emt 0:0:3]} 0-1

[Event "FIDE World Rapid-ch Open 2018"]
[White "Belyakov, Bogdan"]
[Black "Novikov, Stanislav"]
[Site "St. Petersburg"]
[Round "9.65"]
[Annotator "ChessBase"]
[Result "1/2-1/2"]
[Date "2018.12.27"]
[WhiteElo "2459"]
[BlackElo "2540"]
[PlyCount "62"]
[TimeControl "900+10"]

1. e4 {[%emt 0:0:0]} g6 {[%emt 0:0:0]} 2. d4 {[%emt 0:0:0]} Bg7 {[%emt 0:0:0]} 3. Nc3 {[%emt 0:0:0]} c6 {[%emt 0:0:0]} 4. h4 {[%emt 0:0:0]} d5 {[%emt 0:0:4]
} 5. exd5 {[%emt 0:0:1]} cxd5 {[%emt 0:0:11]} 6. h5 {[%emt 0:0:0]} Nc6 {[%emt 0:0:6]} 7. Bb5 {[%emt 0:0:22]} Nh6 {[%emt 0:0:37]} 8. Qf3 {[%emt 0:1:55]} Nf5 {[%emt 0:0:42]} 9. Nge2 {[%emt 0:0:25]} a6 {[%emt 0:0:0]} 10. Bxc6+ {[%emt 0:0:44]} bxc6 {[%emt 0:0:2]} 11. Be3 {[%emt 0:0:0]} Nxe3 {[%emt 0:5:6]} 12. Qxe3 {[%emt 0:0:23]} Qd6 {[%emt 0:0:41]} 13. 0-0-0 {[%emt 0:0:25]} g5 {[%emt 0:0:18]} 14. g3 {[%emt 0:1:25]} h6 {[%emt 0:0:0]} 15. f4 {[%emt 0:0:2]} g4 {[%emt 0:0:58]} 16. Na4 {[%emt 0:0:19]} Bf5 {[%emt 0:0:54]} 17. Nec3 {[%emt 0:0:10]} 0-0 {[%emt 0:0:12]} 18. Rhe1 {[%emt 0:0:26]
} e6 {[%emt 0:0:13]} 19. Nc5 {[%emt 0:0:28]} Rfb8 {[%emt 0:0:0]} 20. b3 {[%emt 0:0:38]} Rb4 {[%emt 0:0:34]} 21. N3a4 {[%emt 0:0:14]} a5 {[%emt 0:0:7]} 22. c3 {[%emt 0:0:9]} Rbb8 {[%emt 0:0:4]} 23. Re2 {[%emt 0:0:30]
} Ra7 {[%emt 0:0:3]} 24. Rde1 {[%emt 0:0:9]} Re7 {[%emt 0:0:0]} 25. Qd2 {[%emt 0:0:6]} Rbe8 {[%emt 0:0:21]} 26. Re3 {[%emt 0:1:4]} f6 {[%emt 0:0:32]} 27. Qf2 {[%emt 0:0:2]} Qb8 {[%emt 0:2:49]} 28. Qf1 {[%emt 0:0:41]
} Qc8 {[%emt 0:0:48]} 29. Nb6 {[%emt 0:0:26]} Qc7 {[%emt 0:0:0]} 30. Nba4 {[%emt 0:0:2]} Qc8 {[%emt 0:0:2]} 31. Nb6 {[%emt 0:0:5]} Qc7 {[%emt 0:0:2]} 1/2-1/2

[Event "FIDE World Rapid-ch Open 2018"]
[White "Usmanov, Vasily"]
[Black "Miton, Kamil"]
[Site "St. Petersburg"]
[Round "9.66"]
[Annotator "ChessBase"]
[Result "1/2-1/2"]
[Date "2018.12.27"]
[WhiteElo "2450"]
[BlackElo "2588"]
[PlyCount "83"]
[TimeControl "900+10"]

1. d4 {[%emt 0:0:0]} Nf6 {[%emt 0:0:0]} 2. c4 {[%emt 0:0:0]} Nc6 {[%emt 0:0:0]
} 3. Nf3 {[%emt 0:0:10]} e6 {[%emt 0:0:0]} 4. a3 {[%emt 0:0:0]} d6 {[%emt 0:0:3]} 5. b4 {[%emt 0:0:5]} g6 {[%emt 0:0:8]} 6. Bb2 {[%emt 0:0:3]
} Bg7 {[%emt 0:0:10]} 7. Qb3 {[%emt 0:0:43]} 0-0 {[%emt 0:0:0]} 8. Nbd2 {[%emt 0:0:2]} e5 {[%emt 0:1:15]} 9. e3 {[%emt 0:2:21]} exd4 {[%emt 0:0:52]
} 10. Nxd4 {[%emt 0:0:3]} Re8 {[%emt 0:2:1]} 11. Nxc6 {[%emt 0:0:7]
} bxc6 {[%emt 0:0:3]} 12. Be2 {[%emt 0:0:4]} a5 {[%emt 0:0:0]} 13. 0-0 {[%emt 0:0:4]} Bd7 {[%emt 0:0:20]} 14. Bf3 {[%emt 0:0:35]} Rb8 {[%emt 0:0:33]} 15. Bc3 {[%emt 0:0:14]} axb4 {[%emt 0:1:20]} 16. axb4 {[%emt 0:0:1]
} c5 {[%emt 0:0:2]} 17. b5 {[%emt 0:0:2]} c6 {[%emt 0:0:17]} 18. Ba5 {[%emt 0:1:51]} Qc8 {[%emt 0:0:8]} 19. b6 {[%emt 0:0:7]} Bf5 {[%emt 0:1:32]
} 20. Qa4 {[%emt 0:2:5]} Ne4 {[%emt 0:0:32]} 21. Ra2 {[%emt 0:0:0]} Ra8 {[%emt 0:0:58]} 22. Nxe4 {[%emt 0:1:10]} Bxe4 {[%emt 0:0:15]} 23. Bxe4 {[%emt 0:0:12]} Rxe4 {[%emt 0:0:2]} 24. Rb1 {[%emt 0:0:56]} Qb7 {[%emt 0:0:24]
} 25. Qc2 {[%emt 0:0:34]} Ree8 {[%emt 0:0:5]} 26. Bd2 {[%emt 0:0:15]
} Bf6 {[%emt 0:0:53]} 27. Rxa8 {[%emt 0:0:19]} Rxa8 {[%emt 0:0:0]} 28. Bc3 {[%emt 0:0:6]} Bxc3 {[%emt 0:2:31]} 29. Qxc3 {[%emt 0:0:2]
} Rb8 {[%emt 0:0:7]} 30. Qf6 {[%emt 0:0:49]} Qc7 {[%emt 0:0:10]} 31. Qb2 {[%emt 0:1:12]
} Qb7 {[%emt 0:0:12]} 32. h4 {[%emt 0:0:4]} Qe7 {[%emt 0:0:0]} 33. b7 {[%emt 0:1:2]} h5 {[%emt 0:0:35]} 34. Qb6 {[%emt 0:0:21]} Qd7 {[%emt 0:0:2]
} 35. g3 {[%emt 0:0:43]} d5 {[%emt 0:0:25]} 36. cxd5 {[%emt 0:0:0]} cxd5 {[%emt 0:0:3]} 37. Qxc5 {[%emt 0:0:40]} Rxb7 {[%emt 0:0:4]} 38. Ra1 {[%emt 0:0:16]} Rb8 {[%emt 0:0:18]} 39. Ra5 {[%emt 0:0:11]} Qh3 {[%emt 0:0:35]
} 40. Ra1 {[%emt 0:0:4]} Qf5 {[%emt 0:0:8]} 41. Qd4 {[%emt 0:0:0]} Rb1+ {[%emt 0:0:15]} 42. Rxb1 {[%emt 0:0:6]} 1/2-1/2